[Event "Titled Tuesday Blitz April 12 Early 2022"]
[White "Bortnyk, Olexandr"]
[Black "Grischuk, Alexander"]
[WhiteFideId "14120828"]
[BlackFideId "4126025"]
[WhiteElo "2723"]
[BlackElo "2762"]
[Result "1-0"]
[Round "09"]
[TimeControl "180+1"]
[Date "2022.04.12"]
[WhiteClock "0:00:18"]
[BlackClock "0:00:01"]

1. d4 {[%clk 0:03:00]}  Nf6 {[%clk 0:02:56]} 2. Nc3 {[%clk 0:03:00]}  d5 {[%clk 0:02:57]} 3. Bf4 {[%clk 0:03:00]}  g6 {[%clk 0:02:57]} 4. e3 {[%clk 0:03:00]}  Bg7 {[%clk 0:02:57]} 5. h4 {[%clk 0:03:00]}  h5 {[%clk 0:02:58]} 6. Nf3 {[%clk 0:03:01]}  O-O {[%clk 0:02:57]} 7. Nb5 {[%clk 0:03:01]}  Na6 {[%clk 0:02:55]} 8. Be2 {[%clk 0:03:02]}  c6 {[%clk 0:02:48]} 9. Nc3 {[%clk 0:03:01]}  Qb6 {[%clk 0:02:25]} 10. a3 {[%clk 0:02:57]}  Nb8 {[%clk 0:02:19]} 11. b4 {[%clk 0:02:53]}  Bg4 {[%clk 0:02:13]} 12. Ne5 {[%clk 0:02:47]}  Bxe2 {[%clk 0:02:13]} 13. Qxe2 {[%clk 0:02:48]}  Nbd7 {[%clk 0:02:10]} 14. O-O {[%clk 0:02:37]}  Qd8 {[%clk 0:02:05]} 15. Rad1 {[%clk 0:02:30]}  e6 {[%clk 0:01:59]} 16. Bg5 {[%clk 0:02:26]}  Qc7 {[%clk 0:01:57]} 17. Bxf6 {[%clk 0:02:24]}  Bxf6 {[%clk 0:01:54]} 18. Nxd7 {[%clk 0:02:22]}  Qxd7 {[%clk 0:01:55]} 19. g3 {[%clk 0:02:22]}  a5 {[%clk 0:01:54]} 20. Na4 {[%clk 0:02:14]}  Qc7 {[%clk 0:01:53]} 21. b5 {[%clk 0:02:12]}  Be7 {[%clk 0:01:39]} 22. Ra1 {[%clk 0:01:52]}  Rfc8 {[%clk 0:01:08]} 23. c4 {[%clk 0:01:43]}  cxb5 {[%clk 0:01:00]} 24. cxb5 {[%clk 0:01:43]}  Qd8 {[%clk 0:01:00]} 25. Qd2 {[%clk 0:01:29]}  Rc4 {[%clk 0:00:55]} 26. Nb2 {[%clk 0:01:29]}  Rc7 {[%clk 0:00:55]} 27. Nd3 {[%clk 0:01:27]}  a4 {[%clk 0:00:49]} 28. Rfc1 {[%clk 0:01:23]}  Rac8 {[%clk 0:00:45]} 29. Rxc7 {[%clk 0:01:20]}  Qxc7 {[%clk 0:00:32]} 30. Rc1 {[%clk 0:01:07]}  Qd7 {[%clk 0:00:30]} 31. Rxc8+ {[%clk 0:00:40]}  Qxc8 {[%clk 0:00:30]} 32. Qa5 {[%clk 0:00:41]}  Qc2 {[%clk 0:00:12]} 33. Ne5 {[%clk 0:00:38]}  Qb1+ {[%clk 0:00:13]} 34. Kh2 {[%clk 0:00:34]}  Qc2 {[%clk 0:00:13]} 35. Kg2 {[%clk 0:00:31]}  Qe4+ {[%clk 0:00:12]} 36. Nf3 {[%clk 0:00:27]}  Qc2 {[%clk 0:00:08]} 37. Qa8+ {[%clk 0:00:24]}  Kg7 {[%clk 0:00:08]} 38. Qxb7 {[%clk 0:00:25]}  Bxa3 {[%clk 0:00:08]} 39. Ng5 {[%clk 0:00:23]}  Qf5 {[%clk 0:00:04]} 40. Qa7 {[%clk 0:00:19]}  Bd6 {[%clk 0:00:01]} 41. b6 {[%clk 0:00:18]} 1-0


[Site "https://www.chess.com"]

[Event "Titled Tuesday Blitz April 12 Early 2022"]
[White "Coto Mederos, Michel"]
[Black "Obolenskikh, Dmitry"]
[WhiteFideId "3508528"]
[BlackFideId "4156013"]
[WhiteElo "2427"]
[BlackElo "2512"]
[Result "1/2-1/2"]
[Round "09"]
[TimeControl "180+1"]
[Date "2022.04.12"]
[WhiteClock "0:00:08"]
[BlackClock "0:00:15"]

1. c4 {[%clk 0:02:53]}  e6 {[%clk 0:02:59]} 2. Nc3 {[%clk 0:02:50]}  d5 {[%clk 0:03:00]} 3. d4 {[%clk 0:02:47]}  Nf6 {[%clk 0:02:59]} 4. cxd5 {[%clk 0:02:46]}  Nxd5 {[%clk 0:02:59]} 5. e4 {[%clk 0:02:45]}  Nxc3 {[%clk 0:02:59]} 6. bxc3 {[%clk 0:02:46]}  c5 {[%clk 0:02:59]} 7. Rb1 {[%clk 0:02:42]}  cxd4 {[%clk 0:02:55]} 8. cxd4 {[%clk 0:02:43]}  Nc6 {[%clk 0:02:55]} 9. Bb5 {[%clk 0:02:34]}  Bd7 {[%clk 0:02:35]} 10. Nf3 {[%clk 0:02:23]}  Bb4+ {[%clk 0:02:33]} 11. Bd2 {[%clk 0:02:23]}  Bxd2+ {[%clk 0:02:32]} 12. Qxd2 {[%clk 0:02:24]}  O-O {[%clk 0:02:30]} 13. O-O {[%clk 0:02:17]}  a6 {[%clk 0:02:15]} 14. Bd3 {[%clk 0:02:08]}  b5 {[%clk 0:02:12]} 15. d5 {[%clk 0:01:49]}  exd5 {[%clk 0:02:11]} 16. exd5 {[%clk 0:01:50]}  Ne7 {[%clk 0:02:08]} 17. d6 {[%clk 0:01:43]}  Ng6 {[%clk 0:02:07]} 18. Be4 {[%clk 0:01:37]}  Rb8 {[%clk 0:02:01]} 19. Rbc1 {[%clk 0:01:29]}  Re8 {[%clk 0:01:59]} 20. Bd5 {[%clk 0:01:13]}  Rb6 {[%clk 0:01:36]} 21. Bxf7+ {[%clk 0:00:41]}  Kxf7 {[%clk 0:01:31]} 22. Qd5+ {[%clk 0:00:41]}  Be6 {[%clk 0:01:23]} 23. Ng5+ {[%clk 0:00:37]}  Kg8 {[%clk 0:01:21]} 24. Nxe6 {[%clk 0:00:24]}  Rxd6 {[%clk 0:01:14]} 25. Nxd8+ {[%clk 0:00:20]}  Rxd5 {[%clk 0:01:14]} 26. Nc6 {[%clk 0:00:18]}  Rd2 {[%clk 0:01:07]} 27. a3 {[%clk 0:00:13]}  Nf4 {[%clk 0:01:03]} 28. Rcd1 {[%clk 0:00:11]}  Ra2 {[%clk 0:00:53]} 29. Rd7 {[%clk 0:00:09]}  Rxa3 {[%clk 0:00:47]} 30. Ne7+ {[%clk 0:00:09]}  Kh8 {[%clk 0:00:47]} 31. Nf5 {[%clk 0:00:09]}  Rg8 {[%clk 0:00:32]} 32. Ne7 {[%clk 0:00:09]}  Rf8 {[%clk 0:00:29]} 33. h4 {[%clk 0:00:08]}  b4 {[%clk 0:00:28]} 34. Rfd1 {[%clk 0:00:07]}  b3 {[%clk 0:00:19]} 35. Nf5 {[%clk 0:00:08]}  Ne6 {[%clk 0:00:18]} 36. Re7 {[%clk 0:00:06]}  b2 {[%clk 0:00:18]} 37. Rxe6 {[%clk 0:00:05]}  Ra1 {[%clk 0:00:18]} 38. Ree1 {[%clk 0:00:05]}  Rxd1 {[%clk 0:00:18]} 39. Rxd1 {[%clk 0:00:06]}  a5 {[%clk 0:00:18]} 40. Ne3 {[%clk 0:00:05]}  a4 {[%clk 0:00:18]} 41. Nc4 {[%clk 0:00:05]}  a3 {[%clk 0:00:17]} 42. Nxa3 {[%clk 0:00:04]}  Ra8 {[%clk 0:00:17]} 43. Nb1 {[%clk 0:00:02]}  Kg8 {[%clk 0:00:17]} 44. Kf1 {[%clk 0:00:03]}  Rc8 {[%clk 0:00:16]} 45. Ke2 {[%clk 0:00:04]}  Rc1 {[%clk 0:00:16]} 46. Kd2 {[%clk 0:00:04]}  Rc4 {[%clk 0:00:16]} 47. Nc3 {[%clk 0:00:04]}  Rxh4 {[%clk 0:00:16]} 48. Kc2 {[%clk 0:00:03]}  Rh2 {[%clk 0:00:16]} 49. Rg1 {[%clk 0:00:03]}  h5 {[%clk 0:00:16]} 50. Kxb2 {[%clk 0:00:04]}  h4 {[%clk 0:00:17]} 51. Kc2 {[%clk 0:00:04]}  h3 {[%clk 0:00:17]} 52. gxh3 {[%clk 0:00:04]}  Rxf2+ {[%clk 0:00:18]} 53. Kb3 {[%clk 0:00:04]}  Rf3 {[%clk 0:00:18]} 54. Rh1 {[%clk 0:00:05]}  Kh7 {[%clk 0:00:18]} 55. Kc4 {[%clk 0:00:06]}  Kh6 {[%clk 0:00:19]} 56. Kd4 {[%clk 0:00:06]}  Kh5 {[%clk 0:00:19]} 57. Ne4 {[%clk 0:00:07]}  Kh4 {[%clk 0:00:19]} 58. Rg1 {[%clk 0:00:05]}  Rxh3 {[%clk 0:00:18]} 59. Rxg7 {[%clk 0:00:06]}  Ra3 {[%clk 0:00:17]} 60. Ke5 {[%clk 0:00:06]}  Kh5 {[%clk 0:00:15]} 61. Rg1 {[%clk 0:00:03]}  Ra5+ {[%clk 0:00:15]} 62. Kf4 {[%clk 0:00:04]}  Ra4 {[%clk 0:00:14]} 63. Kf5 {[%clk 0:00:04]}  Ra5+ {[%clk 0:00:14]} 64. Kf4 {[%clk 0:00:04]}  Ra4 {[%clk 0:00:14]} 65. Rg2 {[%clk 0:00:05]}  Rb4 {[%clk 0:00:14]} 66. Kf5 {[%clk 0:00:05]}  Rb5+ {[%clk 0:00:14]} 67. Ke6 {[%clk 0:00:06]}  Rb6+ {[%clk 0:00:14]} 68. Nd6 {[%clk 0:00:06]}  Ra6 {[%clk 0:00:14]} 69. Ke5 {[%clk 0:00:07]}  Kh4 {[%clk 0:00:14]} 70. Nf5+ {[%clk 0:00:07]}  Kh5 {[%clk 0:00:15]} 71. Nd6 {[%clk 0:00:07]}  Kh4 {[%clk 0:00:15]} 72. Rg1 {[%clk 0:00:07]}  Ra5+ {[%clk 0:00:15]} 73. Kf4 {[%clk 0:00:06]}  Ra4+ {[%clk 0:00:15]} 74. Kf5 {[%clk 0:00:07]}  Ra5+ {[%clk 0:00:15]} 75. Kf4 {[%clk 0:00:07]}  Ra4+ {[%clk 0:00:15]} 76. Ne4 {[%clk 0:00:08]}  Kh5 {[%clk 0:00:15]} 1/2-1/2


[Site "https://www.chess.com"]

[Event "Titled Tuesday Blitz April 12 Early 2022"]
[White "Csonka, Balazs"]
[Black "Shtyka, Sergey"]
[WhiteFideId "742910"]
[BlackFideId "4138465"]
[WhiteElo "2404"]
[BlackElo "2014"]
[Result "1-0"]
[Round "09"]
[TimeControl "180+1"]
[Date "2022.04.13"]
[WhiteClock "0:00:19"]
[BlackClock "0:00:01"]

1. Nf3 {[%clk 0:03:00]}  c5 {[%clk 0:02:58]} 2. c4 {[%clk 0:03:01]}  Nc6 {[%clk 0:02:55]} 3. Nc3 {[%clk 0:03:01]}  g6 {[%clk 0:02:56]} 4. e3 {[%clk 0:03:00]}  Bg7 {[%clk 0:02:55]} 5. d4 {[%clk 0:03:00]}  cxd4 {[%clk 0:02:56]} 6. exd4 {[%clk 0:03:01]}  d6 {[%clk 0:02:56]} 7. d5 {[%clk 0:02:53]}  Ne5 {[%clk 0:02:56]} 8. Nxe5 {[%clk 0:02:52]}  Bxe5 {[%clk 0:02:56]} 9. Be2 {[%clk 0:02:52]}  Bg7 {[%clk 0:02:56]} 10. O-O {[%clk 0:02:51]}  Nf6 {[%clk 0:02:56]} 11. Be3 {[%clk 0:02:49]}  O-O {[%clk 0:02:56]} 12. Bd4 {[%clk 0:02:46]}  a6 {[%clk 0:02:53]} 13. b4 {[%clk 0:02:39]}  Bf5 {[%clk 0:02:35]} 14. Re1 {[%clk 0:02:30]}  Rc8 {[%clk 0:02:34]} 15. c5 {[%clk 0:02:14]}  Nd7 {[%clk 0:01:42]} 16. Bxg7 {[%clk 0:02:07]}  Kxg7 {[%clk 0:01:43]} 17. g4 {[%clk 0:01:56]}  dxc5 {[%clk 0:01:38]} 18. gxf5 {[%clk 0:01:52]}  cxb4 {[%clk 0:01:38]} 19. Qd4+ {[%clk 0:01:50]}  Nf6 {[%clk 0:01:32]} 20. Qxb4 {[%clk 0:01:48]}  Nxd5 {[%clk 0:01:30]} 21. Nxd5 {[%clk 0:01:39]}  Qxd5 {[%clk 0:01:27]} 22. fxg6 {[%clk 0:01:35]}  hxg6 {[%clk 0:01:22]} 23. Bf1 {[%clk 0:01:15]}  Qg5+ {[%clk 0:01:09]} 24. Bg2 {[%clk 0:01:12]}  Rc7 {[%clk 0:00:46]} 25. Rac1 {[%clk 0:01:08]}  Rxc1 {[%clk 0:00:22]} 26. Qb2+ {[%clk 0:01:07]}  Kg8 {[%clk 0:00:19]} 27. Qxc1 {[%clk 0:01:04]}  Qg4 {[%clk 0:00:13]} 28. Rxe7 {[%clk 0:00:54]}  Rd8 {[%clk 0:00:12]} 29. Re1 {[%clk 0:00:54]}  b5 {[%clk 0:00:12]} 30. h3 {[%clk 0:00:52]}  Qd4 {[%clk 0:00:11]} 31. Qe3 {[%clk 0:00:50]}  Qd6 {[%clk 0:00:07]} 32. Re2 {[%clk 0:00:48]}  a5 {[%clk 0:00:07]} 33. Qe5 {[%clk 0:00:40]}  Qd7 {[%clk 0:00:06]} 34. Re4 {[%clk 0:00:37]}  b4 {[%clk 0:00:04]} 35. Rh4 {[%clk 0:00:35]}  Qd1+ {[%clk 0:00:03]} 36. Kh2 {[%clk 0:00:32]}  f6 {[%clk 0:00:03]} 37. Qe6+ {[%clk 0:00:32]}  Kg7 {[%clk 0:00:02]} 38. Qe7+ {[%clk 0:00:32]}  Kg8 {[%clk 0:00:03]} 39. Qh7+ {[%clk 0:00:30]}  Kf8 {[%clk 0:00:02]} 40. Qxg6 {[%clk 0:00:21]}  Qd6+ {[%clk 0:00:02]} 41. f4 {[%clk 0:00:21]}  Ke7 {[%clk 0:00:01]} 42. Rh7+ {[%clk 0:00:19]}  Ke6 {[%clk 0:00:01]} 43. Qe4+ {[%clk 0:00:19]} 1-0


[Site "https://www.chess.com"]

[Event "Titled Tuesday Blitz April 12 Early 2022"]
[White "De Souza, Cristiano Gomes"]
[Black "Butti, Enrique"]
[WhiteFideId "2151758"]
[BlackFideId "3700470"]
[WhiteElo "2068"]
[BlackElo "2080"]
[Result "0-1"]
[Round "09"]
[TimeControl "180+1"]
[Date "2022.04.13"]
[WhiteClock "0:00:20"]
[BlackClock "0:00:15"]

1. d4 {[%clk 0:02:57]}  Nf6 {[%clk 0:02:56]} 2. c4 {[%clk 0:02:56]}  e6 {[%clk 0:02:55]} 3. Nf3 {[%clk 0:02:54]}  b6 {[%clk 0:02:54]} 4. g3 {[%clk 0:02:54]}  Ba6 {[%clk 0:02:53]} 5. b3 {[%clk 0:02:54]}  Bb4+ {[%clk 0:02:51]} 6. Bd2 {[%clk 0:02:53]}  Be7 {[%clk 0:02:50]} 7. Bg2 {[%clk 0:02:53]}  c6 {[%clk 0:02:49]} 8. Ne5 {[%clk 0:02:53]}  d5 {[%clk 0:02:48]} 9. Bc3 {[%clk 0:02:51]}  Nfd7 {[%clk 0:02:45]} 10. Nxd7 {[%clk 0:02:50]}  Nxd7 {[%clk 0:02:44]} 11. Nd2 {[%clk 0:02:50]}  O-O {[%clk 0:02:37]} 12. O-O {[%clk 0:02:46]}  b5 {[%clk 0:02:29]} 13. cxb5 {[%clk 0:02:41]}  cxb5 {[%clk 0:02:28]} 14. Bb2 {[%clk 0:02:41]}  Rc8 {[%clk 0:02:21]} 15. Rc1 {[%clk 0:02:41]}  Qa5 {[%clk 0:02:19]} 16. a4 {[%clk 0:01:58]}  bxa4 {[%clk 0:01:59]} 17. bxa4 {[%clk 0:01:57]}  Bb4 {[%clk 0:01:56]} 18. Nf3 {[%clk 0:01:50]}  Nb6 {[%clk 0:01:51]} 19. Rxc8 {[%clk 0:01:49]}  Rxc8 {[%clk 0:01:49]} 20. Ne5 {[%clk 0:01:39]}  Nxa4 {[%clk 0:01:43]} 21. Ba1 {[%clk 0:01:32]}  Bc3 {[%clk 0:01:40]} 22. Nd3 {[%clk 0:01:30]}  Bxa1 {[%clk 0:01:29]} 23. Qxa1 {[%clk 0:01:27]}  Rc2 {[%clk 0:01:17]} 24. Qb1 {[%clk 0:01:17]}  Rc8 {[%clk 0:01:05]} 25. Rc1 {[%clk 0:01:14]}  h6 {[%clk 0:00:58]} 26. Rxc8+ {[%clk 0:01:13]}  Bxc8 {[%clk 0:00:57]} 27. Qb8 {[%clk 0:01:10]}  Nb6 {[%clk 0:00:49]} 28. Ne5 {[%clk 0:01:00]}  Qa1+ {[%clk 0:00:45]} 29. Bf1 {[%clk 0:01:00]}  Qxd4 {[%clk 0:00:43]} 30. Nc6 {[%clk 0:01:00]}  Qc5 {[%clk 0:00:42]} 31. Nxa7 {[%clk 0:00:58]}  Kh7 {[%clk 0:00:40]} 32. e3 {[%clk 0:00:55]}  Bd7 {[%clk 0:00:39]} 33. Qb7 {[%clk 0:00:49]}  e5 {[%clk 0:00:37]} 34. Qa6 {[%clk 0:00:40]}  e4 {[%clk 0:00:36]} 35. h4 {[%clk 0:00:37]}  d4 {[%clk 0:00:33]} 36. exd4 {[%clk 0:00:37]}  Qxd4 {[%clk 0:00:32]} 37. Qe2 {[%clk 0:00:34]}  f5 {[%clk 0:00:27]} 38. Qe3 {[%clk 0:00:29]}  Qxe3 {[%clk 0:00:25]} 39. fxe3 {[%clk 0:00:28]}  Nd5 {[%clk 0:00:24]} 40. Kf2 {[%clk 0:00:28]}  g5 {[%clk 0:00:24]} 41. hxg5 {[%clk 0:00:27]}  hxg5 {[%clk 0:00:23]} 42. Nb5 {[%clk 0:00:28]}  Nf6 {[%clk 0:00:21]} 43. Be2 {[%clk 0:00:23]}  Bxb5 {[%clk 0:00:19]} 44. Bxb5 {[%clk 0:00:23]}  Ng4+ {[%clk 0:00:18]} 45. Ke2 {[%clk 0:00:23]}  Kg6 {[%clk 0:00:18]} 46. Bd7 {[%clk 0:00:23]}  Kf6 {[%clk 0:00:18]} 47. Bc8 {[%clk 0:00:22]}  Ke5 {[%clk 0:00:17]} 48. Bb7 {[%clk 0:00:20]}  Nf6 {[%clk 0:00:15]} 0-1


[Site "https://www.chess.com"]

[Event "Titled Tuesday Blitz April 12 Early 2022"]
[White "Gallegos Diaz, Carlos Alberto"]
[Black "Hnydiuk, Aleksander"]
[WhiteFideId "3900886"]
[BlackFideId "1109057"]
[WhiteElo "2362"]
[BlackElo "2374"]
[Result "0-1"]
[Round "09"]
[TimeControl "180+1"]
[Date "2022.04.13"]
[WhiteClock "0:00:14"]
[BlackClock "0:00:29"]

1. e4 {[%clk 0:03:00]}  Nf6 {[%clk 0:03:00]} 2. d3 {[%clk 0:02:59]}  e5 {[%clk 0:02:59]} 3. Nd2 {[%clk 0:03:00]}  d5 {[%clk 0:02:59]} 4. Ngf3 {[%clk 0:03:01]}  Bd6 {[%clk 0:02:59]} 5. Be2 {[%clk 0:03:01]}  O-O {[%clk 0:02:59]} 6. O-O {[%clk 0:03:01]}  Re8 {[%clk 0:02:59]} 7. c3 {[%clk 0:03:01]}  Bg4 {[%clk 0:02:56]} 8. h3 {[%clk 0:02:59]}  Bh5 {[%clk 0:02:56]} 9. Re1 {[%clk 0:03:00]}  Nbd7 {[%clk 0:02:55]} 10. Qc2 {[%clk 0:02:54]}  c6 {[%clk 0:02:55]} 11. b4 {[%clk 0:02:54]}  a5 {[%clk 0:02:54]} 12. Rb1 {[%clk 0:02:53]}  axb4 {[%clk 0:02:54]} 13. cxb4 {[%clk 0:02:54]}  Nb6 {[%clk 0:02:50]} 14. a3 {[%clk 0:02:50]}  Na4 {[%clk 0:02:42]} 15. Nf1 {[%clk 0:02:46]}  d4 {[%clk 0:02:31]} 16. Ng3 {[%clk 0:02:29]}  Bxf3 {[%clk 0:02:26]} 17. Bxf3 {[%clk 0:02:28]}  Nc3 {[%clk 0:02:25]} 18. Rb3 {[%clk 0:02:02]}  Bf8 {[%clk 0:01:56]} 19. Nf5 {[%clk 0:01:55]}  Qd7 {[%clk 0:01:41]} 20. Bg5 {[%clk 0:01:39]}  Re6 {[%clk 0:01:41]} 21. g3 {[%clk 0:01:36]}  b6 {[%clk 0:01:34]} 22. h4 {[%clk 0:01:22]}  c5 {[%clk 0:01:34]} 23. bxc5 {[%clk 0:01:17]}  Bxc5 {[%clk 0:01:28]} 24. Bg2 {[%clk 0:01:06]}  Qa4 {[%clk 0:01:26]} 25. Bh3 {[%clk 0:00:59]}  Rc6 {[%clk 0:01:15]} 26. Bc1 {[%clk 0:00:33]}  Bf8 {[%clk 0:01:10]} 27. g4 {[%clk 0:00:32]}  Ra7 {[%clk 0:01:03]} 28. g5 {[%clk 0:00:32]}  Nh5 {[%clk 0:01:01]} 29. Bg4 {[%clk 0:00:30]}  Nf4 {[%clk 0:00:59]} 30. Bxf4 {[%clk 0:00:26]}  exf4 {[%clk 0:01:00]} 31. Qd2 {[%clk 0:00:24]}  Qxb3 {[%clk 0:00:58]} 32. Qxf4 {[%clk 0:00:23]}  Qxa3 {[%clk 0:00:50]} 33. Nxd4 {[%clk 0:00:22]}  Rcc7 {[%clk 0:00:44]} 34. h5 {[%clk 0:00:21]}  Qb4 {[%clk 0:00:37]} 35. Nf5 {[%clk 0:00:19]}  Nd5 {[%clk 0:00:31]} 36. Nh6+ {[%clk 0:00:14]}  gxh6 {[%clk 0:00:29]} 0-1


[Site "https://www.chess.com"]

[Event "Titled Tuesday Blitz April 12 Early 2022"]
[White "Girinath, P.D.S."]
[Black "GodDMuhammad"]
[WhiteFideId "5000572"]
[WhiteElo "2369"]
[BlackElo "2318"]
[Result "1-0"]
[Round "09"]
[TimeControl "180+1"]
[Date "2022.04.13"]
[WhiteClock "0:00:12"]
[BlackClock "0:00:12"]

1. e4 {[%clk 0:03:00]}  e5 {[%clk 0:03:00]} 2. Nf3 {[%clk 0:03:00]}  f5 {[%clk 0:03:00]} 3. exf5 {[%clk 0:02:52]}  e4 {[%clk 0:02:59]} 4. Ne5 {[%clk 0:02:50]}  Nf6 {[%clk 0:02:59]} 5. d4 {[%clk 0:02:49]}  d6 {[%clk 0:02:57]} 6. Nc4 {[%clk 0:02:48]}  Bxf5 {[%clk 0:02:57]} 7. Ne3 {[%clk 0:02:46]}  Bg6 {[%clk 0:02:56]} 8. d5 {[%clk 0:02:46]}  Be7 {[%clk 0:02:53]} 9. Be2 {[%clk 0:02:29]}  O-O {[%clk 0:02:53]} 10. g4 {[%clk 0:02:28]}  Nfd7 {[%clk 0:02:46]} 11. Nc3 {[%clk 0:02:22]}  Ne5 {[%clk 0:02:45]} 12. Nb5 {[%clk 0:02:19]}  c5 {[%clk 0:02:37]} 13. dxc6 {[%clk 0:01:58]}  bxc6 {[%clk 0:02:36]} 14. Nd4 {[%clk 0:01:57]}  Bh4 {[%clk 0:02:22]} 15. Nef5 {[%clk 0:01:44]}  Qf6 {[%clk 0:01:51]} 16. Be3 {[%clk 0:01:29]}  c5 {[%clk 0:01:13]} 17. Nb5 {[%clk 0:01:19]}  Bxf5 {[%clk 0:01:13]} 18. gxf5 {[%clk 0:01:19]}  Qxf5 {[%clk 0:01:13]} 19. Qd5+ {[%clk 0:01:18]}  Kh8 {[%clk 0:01:12]} 20. Qxa8 {[%clk 0:00:46]}  Bxf2+ {[%clk 0:01:10]} 21. Bxf2 {[%clk 0:00:46]}  Qxf2+ {[%clk 0:01:10]} 22. Kd1 {[%clk 0:00:47]}  Nbc6 {[%clk 0:01:04]} 23. Qb7 {[%clk 0:00:39]}  Nd4 {[%clk 0:01:02]} 24. Qxe4 {[%clk 0:00:26]}  Rf4 {[%clk 0:00:36]} 25. Qa8+ {[%clk 0:00:19]}  Rf8 {[%clk 0:00:35]} 26. Qe4 {[%clk 0:00:19]}  Nxb5 {[%clk 0:00:25]} 27. Rf1 {[%clk 0:00:11]}  Qxf1+ {[%clk 0:00:15]} 28. Bxf1 {[%clk 0:00:12]}  Rxf1+ {[%clk 0:00:15]} 29. Ke2 {[%clk 0:00:09]}  Rf8 {[%clk 0:00:13]} 30. c3 {[%clk 0:00:05]}  a6 {[%clk 0:00:11]} 31. Rf1 {[%clk 0:00:04]}  Re8 {[%clk 0:00:11]} 32. Kd1 {[%clk 0:00:03]}  Nc7 {[%clk 0:00:11]} 33. Qb7 {[%clk 0:00:02]}  Ne6 {[%clk 0:00:09]} 34. Qxa6 {[%clk 0:00:02]}  Rd8 {[%clk 0:00:08]} 35. Kc1 {[%clk 0:00:01]}  c4 {[%clk 0:00:07]} 36. Rd1 {[%clk 0:00:02]}  Nd3+ {[%clk 0:00:07]} 37. Rxd3 {[%clk 0:00:02]}  cxd3 {[%clk 0:00:08]} 38. Qxd3 {[%clk 0:00:02]}  Kg8 {[%clk 0:00:08]} 39. Qe3 {[%clk 0:00:03]}  Kf7 {[%clk 0:00:09]} 40. Qb6 {[%clk 0:00:03]}  Rd7 {[%clk 0:00:09]} 41. a4 {[%clk 0:00:04]}  Nc5 {[%clk 0:00:08]} 42. a5 {[%clk 0:00:05]}  Ke6 {[%clk 0:00:08]} 43. Kb1 {[%clk 0:00:05]}  Rf7 {[%clk 0:00:08]} 44. a6 {[%clk 0:00:05]}  Rf1+ {[%clk 0:00:07]} 45. Ka2 {[%clk 0:00:05]}  Rf2 {[%clk 0:00:07]} 46. a7 {[%clk 0:00:04]}  Rxb2+ {[%clk 0:00:07]} 47. Qxb2 {[%clk 0:00:04]}  Nd3 {[%clk 0:00:05]} 48. Qb3+ {[%clk 0:00:04]}  d5 {[%clk 0:00:05]} 49. a8=Q {[%clk 0:00:05]}  Ne5 {[%clk 0:00:06]} 50. Kb2 {[%clk 0:00:05]}  Kf5 {[%clk 0:00:07]} 51. Kb1 {[%clk 0:00:06]}  Nd3 {[%clk 0:00:08]} 52. Qc2 {[%clk 0:00:07]}  Ke4 {[%clk 0:00:08]} 53. Qxd3+ {[%clk 0:00:08]}  Kxd3 {[%clk 0:00:08]} 54. Qxd5+ {[%clk 0:00:08]}  Kxc3 {[%clk 0:00:09]} 55. Qg5 {[%clk 0:00:09]}  Kd3 {[%clk 0:00:09]} 56. Qe7 {[%clk 0:00:10]}  h5 {[%clk 0:00:10]} 57. Qxg7 {[%clk 0:00:10]}  Ke4 {[%clk 0:00:11]} 58. Qh7+ {[%clk 0:00:11]}  Kf3 {[%clk 0:00:11]} 59. Qxh5+ {[%clk 0:00:12]}  Kf4 {[%clk 0:00:12]} 60. Qh8 {[%clk 0:00:12]} 1-0


[Site "https://www.chess.com"]

[Event "Titled Tuesday Blitz April 12 Early 2022"]
[White "Hoffmann, Asa"]
[Black "Raahul V S"]
[WhiteFideId "2001470"]
[BlackFideId "25035525"]
[WhiteElo "2336"]
[BlackElo "2441"]
[Result "0-1"]
[Round "09"]
[TimeControl "180+1"]
[Date "2022.04.13"]
[WhiteClock "0:00:25"]
[BlackClock "0:00:19"]

1. d4 {[%clk 0:02:59]}  d5 {[%clk 0:02:59]} 2. Bg5 {[%clk 0:02:51]}  Nd7 {[%clk 0:02:53]} 3. c4 {[%clk 0:02:50]}  c6 {[%clk 0:02:48]} 4. cxd5 {[%clk 0:02:50]}  cxd5 {[%clk 0:02:48]} 5. Nc3 {[%clk 0:02:50]}  Ngf6 {[%clk 0:02:47]} 6. e3 {[%clk 0:02:49]}  e6 {[%clk 0:02:47]} 7. Bd3 {[%clk 0:02:49]}  Bd6 {[%clk 0:02:47]} 8. f4 {[%clk 0:02:49]}  O-O {[%clk 0:02:46]} 9. Nf3 {[%clk 0:02:48]}  a6 {[%clk 0:02:43]} 10. O-O {[%clk 0:02:48]}  b5 {[%clk 0:02:43]} 11. Ne5 {[%clk 0:02:48]}  Bb7 {[%clk 0:02:38]} 12. Qf3 {[%clk 0:02:47]}  Qe8 {[%clk 0:02:27]} 13. Rac1 {[%clk 0:02:44]}  b4 {[%clk 0:02:19]} 14. Ne2 {[%clk 0:02:39]}  Ne4 {[%clk 0:02:18]} 15. Bxe4 {[%clk 0:02:33]}  dxe4 {[%clk 0:02:18]} 16. Qh3 {[%clk 0:02:32]}  f6 {[%clk 0:02:08]} 17. Nxd7 {[%clk 0:02:31]}  Qxd7 {[%clk 0:02:09]} 18. Bh4 {[%clk 0:02:30]}  a5 {[%clk 0:02:07]} 19. Ng3 {[%clk 0:02:26]}  Kh8 {[%clk 0:01:59]} 20. f5 {[%clk 0:02:08]}  exf5 {[%clk 0:01:59]} 21. Qxf5 {[%clk 0:02:07]}  Qe8 {[%clk 0:01:40]} 22. Rc2 {[%clk 0:01:53]}  g5 {[%clk 0:01:35]} 23. Bxg5 {[%clk 0:01:38]}  fxg5 {[%clk 0:01:33]} 24. Qxg5 {[%clk 0:01:38]}  Rxf1+ {[%clk 0:01:26]} 25. Kxf1 {[%clk 0:01:25]}  Qg6 {[%clk 0:01:23]} 26. Qxg6 {[%clk 0:01:13]}  hxg6 {[%clk 0:01:24]} 27. Ne2 {[%clk 0:01:00]}  Kg7 {[%clk 0:01:03]} 28. g3 {[%clk 0:00:58]}  Rf8+ {[%clk 0:01:02]} 29. Kg2 {[%clk 0:00:57]}  Rf3 {[%clk 0:01:01]} 30. Nf4 {[%clk 0:00:55]}  Rxe3 {[%clk 0:01:01]} 31. Ne6+ {[%clk 0:00:53]}  Kf6 {[%clk 0:00:59]} 32. Nc5 {[%clk 0:00:53]}  Bd5 {[%clk 0:00:59]} 33. Nd7+ {[%clk 0:00:49]}  Ke6 {[%clk 0:00:52]} 34. Nc5+ {[%clk 0:00:48]}  Ke7 {[%clk 0:00:44]} 35. b3 {[%clk 0:00:46]}  Rc3 {[%clk 0:00:42]} 36. Re2 {[%clk 0:00:39]}  e3+ {[%clk 0:00:36]} 37. Kh3 {[%clk 0:00:39]}  Bf3 {[%clk 0:00:35]} 38. Re1 {[%clk 0:00:38]}  Bxc5 {[%clk 0:00:33]} 39. dxc5 {[%clk 0:00:38]}  e2 {[%clk 0:00:33]} 40. g4 {[%clk 0:00:36]}  Bc6+ {[%clk 0:00:26]} 41. Kh4 {[%clk 0:00:33]}  Bb5 {[%clk 0:00:26]} 42. Kg5 {[%clk 0:00:31]}  Kf7 {[%clk 0:00:26]} 43. h4 {[%clk 0:00:31]}  Kg7 {[%clk 0:00:24]} 44. h5 {[%clk 0:00:30]}  Rxc5+ {[%clk 0:00:24]} 45. Kh4 {[%clk 0:00:29]}  g5+ {[%clk 0:00:23]} 46. Kg3 {[%clk 0:00:29]}  Rd5 {[%clk 0:00:21]} 47. Kf3 {[%clk 0:00:29]}  Rd1 {[%clk 0:00:20]} 48. Kf2 {[%clk 0:00:29]}  Kf6 {[%clk 0:00:20]} 49. h6 {[%clk 0:00:25]}  Kg6 {[%clk 0:00:19]} 0-1


[Site "https://www.chess.com"]